[Event "*** Titled Tuesday Blitz"]
[Site "Chess.com"]
[Date "2020.10.20"]
[Round "6"]
[White "Euwe1234"]
[Black "MatyChess1"]
[Result "1/2-1/2"]
[WhiteElo "2348"]
[BlackElo "2544"]
[TimeControl "180+1"]
[EndTime "11:10:57 PDT"]
[Termination "Game drawn - insufficient material"]

1. e4 {[%clk 0:03:00.9]} 1... c5 {[%clk 0:02:59.3]} 2. Nf3 {[%clk 0:02:53.6]}
2... g6 {[%clk 0:02:58.8]} 3. d4 {[%clk 0:02:52]} 3... cxd4 {[%clk 0:02:59.7]}
4. Nxd4 {[%clk 0:02:52.4]} 4... Nc6 {[%clk 0:02:59.4]} 5. c4 {[%clk 0:02:52]}
5... Nf6 {[%clk 0:03:00]} 6. Nc3 {[%clk 0:02:50.9]} 6... d6 {[%clk 0:03:00.6]}
7. Be2 {[%clk 0:02:50.6]} 7... Nxd4 {[%clk 0:03:00.9]} 8. Qxd4 {[%clk
0:02:50.3]} 8... Bg7 {[%clk 0:03:01.8]} 9. Be3 {[%clk 0:02:49.9]} 9... O-O
{[%clk 0:03:02.7]} 10. Qd1 {[%clk 0:02:49.7]} 10... a5 {[%clk 0:03:03.6]} 11.
O-O {[%clk 0:02:47.8]} 11... a4 {[%clk 0:03:03.2]} 12. f3 {[%clk 0:02:39.5]}
12... Qa5 {[%clk 0:03:03.1]} 13. Qd2 {[%clk 0:02:37.8]} 13... Be6 {[%clk
0:03:02]} 14. Rfc1 {[%clk 0:02:27.4]} 14... Rfc8 {[%clk 0:03:01.5]} 15. Nd5
{[%clk 0:02:06]} 15... Qxd2 {[%clk 0:02:53.5]} 16. Bxd2 {[%clk 0:02:04.1]} 16...
Nxd5 {[%clk 0:02:50.3]} 17. cxd5 {[%clk 0:02:02.6]} 17... Bd7 {[%clk 0:02:50.4]}
18. Rab1 {[%clk 0:01:58.2]} 18... f5 {[%clk 0:02:15.7]} 19. Bc3 {[%clk
0:01:29.3]} 19... Bh6 {[%clk 0:02:05.8]} 20. Re1 {[%clk 0:01:20.1]} 20... Kf7
{[%clk 0:02:01.4]} 21. a3 {[%clk 0:01:16.9]} 21... Be3+ {[%clk 0:01:49]} 22. Kh1
{[%clk 0:01:13.9]} 22... Bc5 {[%clk 0:01:48.4]} 23. Rbc1 {[%clk 0:01:02.1]}
23... Rc7 {[%clk 0:01:43.9]} 24. Bd3 {[%clk 0:00:57.9]} 24... Rac8 {[%clk
0:01:41.1]} 25. Ba5 {[%clk 0:00:57.7]} 25... b6 {[%clk 0:01:39.4]} 26. Bd2
{[%clk 0:00:49.1]} 26... Bd4 {[%clk 0:01:35.5]} 27. Rxc7 {[%clk 0:00:48.7]}
27... Rxc7 {[%clk 0:01:35.8]} 28. Rc1 {[%clk 0:00:48.6]} 28... Rc5 {[%clk
0:01:09]} 29. Rxc5 {[%clk 0:00:46.2]} 29... bxc5 {[%clk 0:01:09.9]} 30. Bc3
{[%clk 0:00:42.9]} 30... fxe4 {[%clk 0:01:04]} 31. fxe4 {[%clk 0:00:41.2]} 31...
Bxc3 {[%clk 0:00:15.4]} 32. bxc3 {[%clk 0:00:42.1]} 32... Kf6 {[%clk 0:00:16.3]}
33. Kg1 {[%clk 0:00:41.1]} 33... Ke5 {[%clk 0:00:17.2]} 34. Kf2 {[%clk
0:00:41.3]} 34... e6 {[%clk 0:00:13.2]} 35. dxe6 {[%clk 0:00:40.3]} 35... Bxe6
{[%clk 0:00:14.1]} 36. Ke3 {[%clk 0:00:40.4]} 36... g5 {[%clk 0:00:14.7]} 37. g3
{[%clk 0:00:40]} 37... h5 {[%clk 0:00:14.3]} 38. Be2 {[%clk 0:00:39.6]} 38... h4
{[%clk 0:00:14.4]} 39. Bd1 {[%clk 0:00:32.2]} 39... Bd7 {[%clk 0:00:13.8]} 40.
Be2 {[%clk 0:00:24.5]} 40... Bc6 {[%clk 0:00:13.8]} 41. Bf3 {[%clk 0:00:22.6]}
41... g4 {[%clk 0:00:06.4]} 42. Bxg4 {[%clk 0:00:20.5]} 42... hxg3 {[%clk
0:00:06.6]} 43. hxg3 {[%clk 0:00:21.4]} 43... Bxe4 {[%clk 0:00:07.2]} 44. Bd1
{[%clk 0:00:21.7]} 44... Bc6 {[%clk 0:00:07]} 45. g4 {[%clk 0:00:22]} 45... Be8
{[%clk 0:00:07.1]} 46. c4 {[%clk 0:00:21.5]} 46... Bd7 {[%clk 0:00:04.6]} 47.
Be2 {[%clk 0:00:18.6]} 47... Be8 {[%clk 0:00:04.2]} 48. Bf3 {[%clk 0:00:18.2]}
48... Bd7 {[%clk 0:00:04.3]} 49. Bd1 {[%clk 0:00:18.3]} 49... Be8 {[%clk
0:00:04.4]} 50. Be2 {[%clk 0:00:14.6]} 50... Bf7 {[%clk 0:00:04.2]} 51. Bd3
{[%clk 0:00:11.6]} 51... Be6 {[%clk 0:00:03.4]} 52. Be2 {[%clk 0:00:12.1]} 52...
Bd7 {[%clk 0:00:03.1]} 53. Bf3 {[%clk 0:00:11.3]} 53... Be8 {[%clk 0:00:03.5]}
54. Bd1 {[%clk 0:00:11]} 54... Bc6 {[%clk 0:00:03.5]} 55. Be2 {[%clk 0:00:11]}
55... Bd7 {[%clk 0:00:03.9]} 56. Bf3 {[%clk 0:00:11]} 56... Be6 {[%clk
0:00:04.2]} 57. Be2 {[%clk 0:00:10.2]} 57... Bf7 {[%clk 0:00:04.5]} 58. Bd3
{[%clk 0:00:08.4]} 58... Be8 {[%clk 0:00:04.8]} 59. g5 {[%clk 0:00:08.5]} 59...
Bf7 {[%clk 0:00:02.6]} 60. Kd2 {[%clk 0:00:03.8]} 60... Ke6 {[%clk 0:00:01.5]}
61. Kc3 {[%clk 0:00:03.2]} 61... Ke5 {[%clk 0:00:02]} 62. Bc2 {[%clk 0:00:02.7]}
62... Bg8 {[%clk 0:00:02.9]} 63. Bxa4 {[%clk 0:00:01.9]} 63... Kf4 {[%clk
0:00:03.4]} 64. Bc2 {[%clk 0:00:01.8]} 64... Kxg5 {[%clk 0:00:03.6]} 65. a4
{[%clk 0:00:02.7]} 65... Kf4 {[%clk 0:00:04.1]} 66. a5 {[%clk 0:00:03.6]} 66...
Be6 {[%clk 0:00:04.2]} 67. a6 {[%clk 0:00:04.5]} 67... Bc8 {[%clk 0:00:04.8]}
68. a7 {[%clk 0:00:05.4]} 68... Bb7 {[%clk 0:00:05.3]} 69. Bd1 {[%clk
0:00:05.8]} 69... Ke5 {[%clk 0:00:05.7]} 70. Kd3 {[%clk 0:00:06.2]} 70... Ke6
{[%clk 0:00:06]} 71. Be2 {[%clk 0:00:06.2]} 71... Kd7 {[%clk 0:00:06.3]} 72. Ke3
{[%clk 0:00:06.7]} 72... Kc7 {[%clk 0:00:06.8]} 73. Kf4 {[%clk 0:00:06.1]} 73...
Kb6 {[%clk 0:00:06.9]} 74. Kf5 {[%clk 0:00:06]} 74... d5 {[%clk 0:00:05.7]} 75.
cxd5 {[%clk 0:00:05.4]} 75... Bxd5 {[%clk 0:00:05.5]} 76. Bc4 {[%clk 0:00:05.4]}
76... Bb7 {[%clk 0:00:05.2]} 77. Ke5 {[%clk 0:00:04.6]} 77... Kxa7 {[%clk
0:00:05.5]} 78. Kd6 {[%clk 0:00:05.1]} 78... Kb6 {[%clk 0:00:06.4]} 79. Bb3
{[%clk 0:00:05.1]} 79... Bc6 {[%clk 0:00:06.6]} 80. Bc4 {[%clk 0:00:04.8]} 80...
Bb7 {[%clk 0:00:06.9]} 81. Bb3 {[%clk 0:00:05]} 81... Ba6 {[%clk 0:00:07.1]} 82.
Ba2 {[%clk 0:00:04.6]} 82... Bb5 {[%clk 0:00:07.6]} 83. Bd5 {[%clk 0:00:04.6]}
83... Bc6 {[%clk 0:00:08]} 84. Bxc6 {[%clk 0:00:04.1]} 84... c4 {[%clk
0:00:08.4]} 85. Be4 {[%clk 0:00:05]} 85... Ka5 {[%clk 0:00:08.5]} 86. Kd5 {[%clk
0:00:05.2]} 86... c3 {[%clk 0:00:09.2]} 87. Kd4 {[%clk 0:00:05.4]} 87... Kb4
{[%clk 0:00:10.1]} 88. Bc2 {[%clk 0:00:05.9]} 88... Ka3 {[%clk 0:00:10.3]} 89.
Kxc3 {[%clk 0:00:06.8]} 1/2-1/2

[Event "*** Titled Tuesday Blitz"]
[Site "Chess.com"]
[Date "2020.10.20"]
[Round "6"]
[White "WIDBIFS"]
[Black "Sychev_Klementy"]
[Result "1-0"]
[WhiteElo "2764"]
[BlackElo "2872"]
[TimeControl "180+1"]
[EndTime "11:11:06 PDT"]
[Termination "WIDBIFS won by resignation"]

1. d4 {[%clk 0:03:00.9]} 1... Nf6 {[%clk 0:03:00]} 2. Nf3 {[%clk 0:03:00.9]}
2... e6 {[%clk 0:02:59.4]} 3. Bf4 {[%clk 0:03:01.3]} 3... d5 {[%clk 0:02:56.4]}
4. e3 {[%clk 0:03:01.7]} 4... Bd6 {[%clk 0:02:56.1]} 5. Bg3 {[%clk 0:03:01.9]}
5... O-O {[%clk 0:02:56.4]} 6. Nbd2 {[%clk 0:03:01.2]} 6... c5 {[%clk
0:02:56.7]} 7. c3 {[%clk 0:03:01.4]} 7... Qc7 {[%clk 0:02:57]} 8. Bd3 {[%clk
0:03:01.6]} 8... Nbd7 {[%clk 0:02:57.6]} 9. Qc2 {[%clk 0:03:02]} 9... e5 {[%clk
0:02:54.1]} 10. dxe5 {[%clk 0:03:02.9]} 10... Nxe5 {[%clk 0:02:54.2]} 11. Nxe5
{[%clk 0:03:03.8]} 11... Bxe5 {[%clk 0:02:54.5]} 12. Bh4 {[%clk 0:03:04.7]}
12... c4 {[%clk 0:02:33.9]} 13. Bxf6 {[%clk 0:03:03.5]} 13... Bxf6 {[%clk
0:01:56.4]} 14. Bxh7+ {[%clk 0:03:02.2]} 14... Kh8 {[%clk 0:01:56.9]} 15. Bf5
{[%clk 0:03:02.5]} 15... g6 {[%clk 0:01:57]} 16. Bxc8 {[%clk 0:02:59.8]} 16...
Raxc8 {[%clk 0:01:57.9]} 17. Nf3 {[%clk 0:02:57.7]} 17... Kg7 {[%clk 0:01:56.8]}
18. a4 {[%clk 0:02:53.1]} 18... Rh8 {[%clk 0:01:53.4]} 19. Rd1 {[%clk
0:02:51.1]} 19... Rh5 {[%clk 0:01:51.8]} 20. h4 {[%clk 0:02:35.4]} 20... Qc5
{[%clk 0:01:35.1]} 21. g3 {[%clk 0:02:29.4]} 21... b5 {[%clk 0:01:31.9]} 22.
axb5 {[%clk 0:02:29]} 22... Qxb5 {[%clk 0:01:32.8]} 23. Nd4 {[%clk 0:02:25.4]}
23... Qb7 {[%clk 0:01:21]} 24. O-O {[%clk 0:02:21.9]} 24... Bxh4 {[%clk
0:01:02.1]} 25. gxh4 {[%clk 0:01:45.9]} 25... Rxh4 {[%clk 0:00:53.1]} 26. f3
{[%clk 0:01:41.4]} 26... Rch8 {[%clk 0:00:51.5]} 27. Rd2 {[%clk 0:01:39.1]}
27... Qe7 {[%clk 0:00:46.8]} 28. Kf2 {[%clk 0:00:50.1]} 28... Rh2+ {[%clk
0:00:44.9]} 29. Ke1 {[%clk 0:00:50.4]} 29... Qxe3+ {[%clk 0:00:45.4]} 30. Re2
{[%clk 0:00:46.6]} 30... Rxe2+ {[%clk 0:00:36.5]} 31. Nxe2 {[%clk 0:00:44.5]}
31... Rh2 {[%clk 0:00:28.8]} 32. Qd2 {[%clk 0:00:43.1]} 32... Qe5 {[%clk
0:00:26.9]} 33. Kd1 {[%clk 0:00:35.7]} 33... Kg8 {[%clk 0:00:23.2]} 34. Re1
{[%clk 0:00:35.2]} 34... Rf2 {[%clk 0:00:18.6]} 35. Qd4 {[%clk 0:00:29.7]} 35...
Qh2 {[%clk 0:00:16.7]} 36. f4 {[%clk 0:00:26.9]} 36... Qg2 {[%clk 0:00:14.4]}
37. Qxa7 {[%clk 0:00:23.7]} 37... Rf3 {[%clk 0:00:12.5]} 38. Kc1 {[%clk
0:00:11.6]} 38... Rd3 {[%clk 0:00:12]} 39. Qe7 {[%clk 0:00:09.4]} 39... Qf2
{[%clk 0:00:10.3]} 40. Qe8+ {[%clk 0:00:07]} 40... Kg7 {[%clk 0:00:10.2]} 41.
Qe5+ {[%clk 0:00:07.2]} 41... Kg8 {[%clk 0:00:10.6]} 42. Qe8+ {[%clk 0:00:07.4]}
42... Kg7 {[%clk 0:00:10.5]} 43. Qe5+ {[%clk 0:00:04]} 43... Kg8 {[%clk
0:00:10.8]} 44. Rh1 {[%clk 0:00:02.4]} 44... Rh3 {[%clk 0:00:04]} 45. Rxh3
{[%clk 0:00:02.4]} 45... Qf1+ {[%clk 0:00:04.3]} 46. Kd2 {[%clk 0:00:03]} 46...
Qxh3 {[%clk 0:00:04.4]} 47. Qxd5 {[%clk 0:00:03.6]} 47... Qc8 {[%clk 0:00:04.7]}
48. Qd4 {[%clk 0:00:03.6]} 48... Qb7 {[%clk 0:00:04.4]} 49. Kc2 {[%clk
0:00:03.7]} 49... Qc6 {[%clk 0:00:03.8]} 50. Qe3 {[%clk 0:00:03.7]} 50... Qa4+
{[%clk 0:00:04]} 51. Kc1 {[%clk 0:00:03.2]} 51... Qa1+ {[%clk 0:00:04.1]} 52.
Kc2 {[%clk 0:00:03.1]} 52... Qa4+ {[%clk 0:00:04.8]} 53. Kd2 {[%clk 0:00:03.8]}
53... Qa2 {[%clk 0:00:05]} 54. Ke1 {[%clk 0:00:03.5]} 54... Qxb2 {[%clk
0:00:04.9]} 55. Kf2 {[%clk 0:00:04.4]} 55... Qc2 {[%clk 0:00:04.7]} 56. Qd4
{[%clk 0:00:05.3]} 56... Qa4 {[%clk 0:00:04.3]} 57. Ke3 {[%clk 0:00:05.8]} 57...
Qc6 {[%clk 0:00:04.4]} 58. Ng3 {[%clk 0:00:06.3]} 58... Qg2 {[%clk 0:00:03.8]}
59. Ne4 {[%clk 0:00:05.9]} 59... Qg1+ {[%clk 0:00:03.4]} 60. Kd2 {[%clk
0:00:05.1]} 60... Qg2+ {[%clk 0:00:03.7]} 61. Kc1 {[%clk 0:00:05.2]} 61... Qf1+
{[%clk 0:00:03.8]} 62. Kb2 {[%clk 0:00:05.4]} 62... Qe2+ {[%clk 0:00:01.8]} 63.
Ka3 {[%clk 0:00:04.7]} 63... Kh7 {[%clk 0:00:01.5]} 64. Ng5+ {[%clk 0:00:04]}
64... Kg8 {[%clk 0:00:01.8]} 65. Ne4 {[%clk 0:00:04.4]} 65... Kh7 {[%clk
0:00:01.9]} 66. Nf6+ {[%clk 0:00:04.8]} 66... Kg7 {[%clk 0:00:01.9]} 67. Ng4+
{[%clk 0:00:02.7]} 67... Kg8 {[%clk 0:00:01.5]} 68. Qd8+ {[%clk 0:00:02.2]}
68... Kg7 {[%clk 0:00:01.2]} 69. Qf6+ {[%clk 0:00:02.5]} 69... Kf8 {[%clk
0:00:01.8]} 70. Qh8+ {[%clk 0:00:01.6]} 70... Ke7 {[%clk 0:00:02.1]} 71. Qe5+
{[%clk 0:00:02.5]} 71... Qxe5 {[%clk 0:00:02.1]} 72. Nxe5 {[%clk 0:00:03.4]}
72... Ke6 {[%clk 0:00:02.2]} 73. Nxc4 {[%clk 0:00:03.8]} 73... Kf5 {[%clk
0:00:02.9]} 74. Nd6+ {[%clk 0:00:03.5]} 74... Kxf4 {[%clk 0:00:03]} 75. Nxf7
{[%clk 0:00:04.2]} 75... Kf5 {[%clk 0:00:01.8]} 76. c4 {[%clk 0:00:04.7]} 76...
Ke6 {[%clk 0:00:02.1]} 77. Nh6 {[%clk 0:00:04.6]} 77... g5 {[%clk 0:00:01.7]}
78. Kb4 {[%clk 0:00:03.6]} 78... Kd6 {[%clk 0:00:01.7]} 79. c5+ {[%clk 0:00:04]}
79... Kc6 {[%clk 0:00:02.1]} 80. Kc4 {[%clk 0:00:04.5]} 80... Kc7 {[%clk
0:00:02.2]} 81. Kd5 {[%clk 0:00:05.1]} 81... Kd7 {[%clk 0:00:02.5]} 82. c6+
{[%clk 0:00:05.6]} 82... Kc7 {[%clk 0:00:02.2]} 83. Kc5 {[%clk 0:00:06.3]} 83...
Kc8 {[%clk 0:00:01.4]} 84. Kd6 {[%clk 0:00:06.7]} 84... Kd8 {[%clk 0:00:01.8]}
85. Nf7+ {[%clk 0:00:05.3]} 85... Kc8 {[%clk 0:00:01.9]} 86. Nxg5 {[%clk
0:00:05.7]} 1-0

[Event "*** Titled Tuesday Blitz"]
[Site "Chess.com"]
[Date "2020.10.20"]
[Round "6"]
[White "Oleksandr_Bortnyk"]
[Black "mishanick"]
[Result "1/2-1/2"]
[WhiteElo "2894"]
[BlackElo "2998"]
[TimeControl "180+1"]
[EndTime "11:11:50 PDT"]
[Termination "Game drawn by 50-move rule"]

1. e4 {[%clk 0:03:00.9]} 1... c5 {[%clk 0:02:59.9]} 2. c3 {[%clk 0:02:58.9]}
2... Nf6 {[%clk 0:02:57.5]} 3. e5 {[%clk 0:02:58.9]} 3... Nd5 {[%clk 0:02:58.1]}
4. d4 {[%clk 0:02:59.8]} 4... cxd4 {[%clk 0:02:58.3]} 5. Nf3 {[%clk 0:03:00.7]}
5... Nc6 {[%clk 0:02:57.6]} 6. cxd4 {[%clk 0:03:01.6]} 6... d6 {[%clk
0:02:57.6]} 7. Bc4 {[%clk 0:03:02.2]} 7... dxe5 {[%clk 0:02:57.8]} 8. dxe5
{[%clk 0:03:02.3]} 8... Ndb4 {[%clk 0:02:58.1]} 9. Qb3 {[%clk 0:03:01.6]} 9...
e6 {[%clk 0:02:57.2]} 10. O-O {[%clk 0:03:00.5]} 10... Na5 {[%clk 0:02:56.9]}
11. Bb5+ {[%clk 0:02:57.6]} 11... Bd7 {[%clk 0:02:57.2]} 12. Qa4 {[%clk
0:02:57]} 12... Bxb5 {[%clk 0:02:57.2]} 13. Qxb5+ {[%clk 0:02:57.9]} 13... Nac6
{[%clk 0:02:57.7]} 14. Nc3 {[%clk 0:02:42.3]} 14... a6 {[%clk 0:02:57.7]} 15.
Qc4 {[%clk 0:02:36.4]} 15... Qd3 {[%clk 0:02:57.8]} 16. Qf4 {[%clk 0:02:26]}
16... Be7 {[%clk 0:02:55.4]} 17. Rd1 {[%clk 0:02:20.2]} 17... Qg6 {[%clk
0:02:55.2]} 18. Be3 {[%clk 0:02:11.7]} 18... Nd3 {[%clk 0:02:39.8]} 19. Qe4
{[%clk 0:02:10.4]} 19... Rd8 {[%clk 0:01:48.1]} 20. Bb6 {[%clk 0:01:37.4]} 20...
Rd7 {[%clk 0:01:46.8]} 21. Qe3 {[%clk 0:01:34.2]} 21... O-O {[%clk 0:01:36.4]}
22. Ne2 {[%clk 0:01:16.7]} 22... Ncb4 {[%clk 0:01:13.7]} 23. Rd2 {[%clk
0:00:53.8]} 23... Rc8 {[%clk 0:01:07.6]} 24. Ned4 {[%clk 0:00:16.9]} 24... Nd5
{[%clk 0:00:39.2]} 25. Qxd3 {[%clk 0:00:16.8]} 25... Qxd3 {[%clk 0:00:39.9]} 26.
Rxd3 {[%clk 0:00:17.7]} 26... Nxb6 {[%clk 0:00:40.6]} 27. Rb3 {[%clk 0:00:08.2]}
27... Nd5 {[%clk 0:00:35.4]} 28. g3 {[%clk 0:00:07.4]} 28... Bc5 {[%clk
0:00:33.4]} 29. Rc1 {[%clk 0:00:04.9]} 29... Rdc7 {[%clk 0:00:33.6]} 30. Kg2
{[%clk 0:00:03.9]} 30... g6 {[%clk 0:00:31.2]} 31. Ne2 {[%clk 0:00:03.3]} 31...
b5 {[%clk 0:00:28.4]} 32. a3 {[%clk 0:00:03]} 32... Ba7 {[%clk 0:00:27]} 33.
Rxc7 {[%clk 0:00:03.4]} 33... Rxc7 {[%clk 0:00:27.9]} 34. Rd3 {[%clk 0:00:04]}
34... Rc4 {[%clk 0:00:21.1]} 35. h4 {[%clk 0:00:03.7]} 35... h5 {[%clk
0:00:20.7]} 36. Rd2 {[%clk 0:00:02.4]} 36... a5 {[%clk 0:00:20.8]} 37. Ned4
{[%clk 0:00:02.5]} 37... Bxd4 {[%clk 0:00:19.9]} 38. Nxd4 {[%clk 0:00:03.4]}
38... b4 {[%clk 0:00:20.4]} 39. axb4 {[%clk 0:00:03.1]} 39... axb4 {[%clk
0:00:21.3]} 40. Nb5 {[%clk 0:00:02.5]} 40... Re4 {[%clk 0:00:20.6]} 41. f4
{[%clk 0:00:02.8]} 41... Re1 {[%clk 0:00:20.7]} 42. Nd4 {[%clk 0:00:02.5]} 42...
Rc1 {[%clk 0:00:21]} 43. Kf3 {[%clk 0:00:02.9]} 43... Rc4 {[%clk 0:00:21.1]} 44.
Nb5 {[%clk 0:00:02.8]} 44... Kg7 {[%clk 0:00:20.9]} 45. Nd6 {[%clk 0:00:03]}
45... Rc1 {[%clk 0:00:20.7]} 46. Ne8+ {[%clk 0:00:03]} 46... Kf8 {[%clk
0:00:18.4]} 47. Nf6 {[%clk 0:00:03.9]} 47... Nxf6 {[%clk 0:00:08.8]} 48. exf6
{[%clk 0:00:04.8]} 48... Ke8 {[%clk 0:00:09.5]} 49. Rd4 {[%clk 0:00:05.2]} 49...
Rf1+ {[%clk 0:00:05.6]} 50. Kg2 {[%clk 0:00:05.2]} 50... Rc1 {[%clk 0:00:05.8]}
51. Rxb4 {[%clk 0:00:05.9]} 51... Rc5 {[%clk 0:00:03.8]} 52. Rb8+ {[%clk
0:00:05.4]} 52... Kd7 {[%clk 0:00:04.1]} 53. Rf8 {[%clk 0:00:05.6]} 53... e5
{[%clk 0:00:04.2]} 54. fxe5 {[%clk 0:00:04.3]} 54... Ke6 {[%clk 0:00:04.7]} 55.
Re8+ {[%clk 0:00:04.7]} 55... Kf5 {[%clk 0:00:05.2]} 56. Re7 {[%clk 0:00:04.8]}
56... Rc2+ {[%clk 0:00:05.7]} 57. Kf3 {[%clk 0:00:04.8]} 57... Rxb2 {[%clk
0:00:06.3]} 58. Rxf7 {[%clk 0:00:03.9]} 58... Kxe5 {[%clk 0:00:06.5]} 59. Rf8
{[%clk 0:00:04.5]} 59... Rb3+ {[%clk 0:00:06.6]} 60. Kf2 {[%clk 0:00:04.5]}
60... Ke6 {[%clk 0:00:07]} 61. Kg2 {[%clk 0:00:04.3]} 61... Rb5 {[%clk
0:00:07.1]} 62. Kh3 {[%clk 0:00:02.9]} 62... Rf5 {[%clk 0:00:07.6]} 63. Re8+
{[%clk 0:00:02.7]} 63... Kf7 {[%clk 0:00:07.5]} 64. Re7+ {[%clk 0:00:02.8]}
64... Kxf6 {[%clk 0:00:07.8]} 65. Ra7 {[%clk 0:00:03.7]} 65... Rb5 {[%clk
0:00:08.2]} 66. Ra6+ {[%clk 0:00:04]} 66... Kf5 {[%clk 0:00:08.8]} 67. Ra2
{[%clk 0:00:04.1]} 67... Rb1 {[%clk 0:00:08.9]} 68. Rf2+ {[%clk 0:00:04.6]}
68... Ke4 {[%clk 0:00:09.1]} 69. Rf6 {[%clk 0:00:03.7]} 69... Rb5 {[%clk
0:00:06]} 70. Rxg6 {[%clk 0:00:04]} 70... Ra5 {[%clk 0:00:06.6]} 71. Rf6 {[%clk
0:00:02.4]} 71... Rb5 {[%clk 0:00:05.5]} 72. Rf4+ {[%clk 0:00:02.4]} 72... Ke5
{[%clk 0:00:05.5]} 73. Rf8 {[%clk 0:00:02]} 73... Ke6 {[%clk 0:00:06]} 74. Kg2
{[%clk 0:00:01.5]} 74... Rc5 {[%clk 0:00:06.5]} 75. Rf2 {[%clk 0:00:02.2]} 75...
Rb5 {[%clk 0:00:06.6]} 76. Rf4 {[%clk 0:00:03]} 76... Ra5 {[%clk 0:00:06]} 77.
Kh3 {[%clk 0:00:03.6]} 77... Rf5 {[%clk 0:00:05.8]} 78. Re4+ {[%clk 0:00:02.5]}
78... Kf6 {[%clk 0:00:06.1]} 79. Ra4 {[%clk 0:00:03.4]} 79... Kg6 {[%clk
0:00:06.6]} 80. Ra6+ {[%clk 0:00:04.3]} 80... Kg7 {[%clk 0:00:06.9]} 81. Kg2
{[%clk 0:00:04.3]} 81... Rb5 {[%clk 0:00:07.5]} 82. Rd6 {[%clk 0:00:04.3]} 82...
Rf5 {[%clk 0:00:07.9]} 83. Re6 {[%clk 0:00:04.6]} 83... Ra5 {[%clk 0:00:08.2]}
84. Re3 {[%clk 0:00:04.9]} 84... Rb5 {[%clk 0:00:08.4]} 85. Kf3 {[%clk
0:00:05.3]} 85... Ra5 {[%clk 0:00:08.8]} 86. Kf4 {[%clk 0:00:05.8]} 86... Kg6
{[%clk 0:00:09.1]} 87. Re6+ {[%clk 0:00:05.8]} 87... Kg7 {[%clk 0:00:08.3]} 88.
Re5 {[%clk 0:00:06.7]} 88... Ra4+ {[%clk 0:00:08.7]} 89. Kf5 {[%clk 0:00:07.1]}
89... Rg4 {[%clk 0:00:08.6]} 90. Re7+ {[%clk 0:00:06.9]} 90... Kh6 {[%clk
0:00:08.7]} 91. Re3 {[%clk 0:00:06.7]} 91... Kh7 {[%clk 0:00:09.1]} 92. Rb3
{[%clk 0:00:05.7]} 92... Kh6 {[%clk 0:00:09]} 93. Kf6 {[%clk 0:00:06.1]} 93...
Kh7 {[%clk 0:00:08.4]} 94. Ke5 {[%clk 0:00:06.1]} 94... Kh6 {[%clk 0:00:08.6]}
95. Kf5 {[%clk 0:00:06.7]} 95... Kh7 {[%clk 0:00:09.1]} 96. Rc3 {[%clk
0:00:06.8]} 96... Kh6 {[%clk 0:00:09.5]} 97. Kf6 {[%clk 0:00:06.2]} 97... Kh7
{[%clk 0:00:09.8]} 98. Rc5 {[%clk 0:00:06.6]} 98... Rg6+ {[%clk 0:00:08.8]} 99.
Kf7 {[%clk 0:00:06.8]} 99... Kh6 {[%clk 0:00:08.2]} 100. Rc3 {[%clk 0:00:05]}
100... Rg7+ {[%clk 0:00:08.4]} 101. Kf6 {[%clk 0:00:05.2]} 101... Rg6+ {[%clk
0:00:09]} 102. Ke5 {[%clk 0:00:05.6]} 102... Rg4 {[%clk 0:00:09.4]} 103. Rc6+
{[%clk 0:00:05.5]} 103... Kg7 {[%clk 0:00:09.4]} 104. Rc7+ {[%clk 0:00:05.8]}
104... Kg8 {[%clk 0:00:09.4]} 105. Rc3 {[%clk 0:00:06.7]} 105... Kg7 {[%clk
0:00:09.8]} 106. Kf5 {[%clk 0:00:07.1]} 106... Kf7 {[%clk 0:00:10.4]} 107. Rc7+
{[%clk 0:00:07]} 107... Kg8 {[%clk 0:00:10.7]} 108. Rc8+ {[%clk 0:00:06]} 108...
Kg7 {[%clk 0:00:11.1]} 109. Rc7+ {[%clk 0:00:06.4]} 109... Kg8 {[%clk
0:00:11.3]} 110. Rc3 {[%clk 0:00:07.2]} 110... Kg7 {[%clk 0:00:11.6]} 111. Ra3
{[%clk 0:00:07.8]} 111... Kf7 {[%clk 0:00:11.5]} 112. Rf3 {[%clk 0:00:07.3]}
112... Kg7 {[%clk 0:00:11.5]} 113. Re3 {[%clk 0:00:07]} 113... Kf7 {[%clk
0:00:11.4]} 114. Rb3 {[%clk 0:00:07.1]} 114... Kg8 {[%clk 0:00:11.4]} 115. Rb8+
{[%clk 0:00:07.4]} 115... Kg7 {[%clk 0:00:11.7]} 116. Rb7+ {[%clk 0:00:07.7]}
116... Kg8 {[%clk 0:00:11.5]} 117. Rb3 {[%clk 0:00:05.8]} 117... Kf7 {[%clk
0:00:10.4]} 118. Rc3 {[%clk 0:00:06.3]} 118... Kg7 {[%clk 0:00:10.5]} 119. Ra3
{[%clk 0:00:05.8]} 119... Kg8 {[%clk 0:00:10.6]} 120. Kf6 {[%clk 0:00:06.1]}
1/2-1/2